bitfinex-derivatives/quotes_SOLF0:USTF0_20250907
["timestamp","ask_amount","ask_price","bid_price","bid_amount"]
[1757236366295,7.87,203.89,203.87,4.3415457]
[1757236366498,7.87,203.89,203.86,7.76]
[1757236366696,7.87,203.89,203.87,4.34163929]
[1757236366996,7.87,203.89,203.86,7.76]
[1757236367198,7.87,203.89,203.87,4.34163929]
[1757236367397,7.87,203.89,203.86,7.76]
[1757236367601,7.87,203.89,203.87,4.34182201]
[1757236367898,7.87,203.89,203.86,7.76]
[1757236368101,5.51875446,203.9,203.87,4.34166216]
[1757236368297,7.87,203.89,203.86,7.76]
[1757236368499,5.51875446,203.9,203.87,4.34186943]
[1757236368702,7.87,203.89,203.86,7.76]
[1757236368901,7.87,203.89,203.87,4.34186943]
[1757236369201,5.51875446,203.9,203.86,7.76]
[1757236369403,5.51875446,203.9,203.87,4.3421884]
[1757236369590,5.51875446,203.9,203.86,7.76]
[1757236369795,5.51875446,203.9,203.87,4.34218845]
[1757236369993,7.39,203.89,203.86,7.76]
[1757236370198,7.39,203.89,203.87,4.34218845]
[1757236370399,7.39,203.89,203.86,7.76]
[1757236370697,7.39,203.89,203.87,4.34264727]
[1757236370898,5.51875446,203.9,203.86,7.76]
[1757236371101,7.39,203.89,203.87,4.34307756]
[1757236371300,7.39,203.89,203.86,7.76]
[1757236371499,7.39,203.89,203.87,8.93146635]
[1757236371698,5.51875446,203.9,203.86,7.76]
[1757236371900,7.39,203.89,203.87,8.93179514]
[1757236372097,7.39,203.89,203.86,7.76]
[1757236372298,7.39,203.89,203.87,8.93404166]
[1757236372499,7.39,203.89,203.86,7.76]
[1757236372803,7.39,203.89,203.87,8.93498757]
[1757236373003,7.39,203.89,203.86,7.76]
[1757236373202,7.39,203.89,203.87,8.93620122]
[1757236373404,7.39,203.89,203.88,4.34570932]
[1757236374298,12.90875446,203.89,203.88,4.34570932]
[1757236377200,12.90875446,203.89,203.88,8.94220458]
[1757236379408,7.39,203.89,203.88,8.94220458]
[1757236386316,15.66880199,203.89,203.88,8.94220458]
[1757236387414,15.66880199,203.89,203.88,4.34570932]
[1757236387917,15.66880199,203.89,203.85,7.42]
[1757236388217,5.51772757,203.87,203.83,7.42]
[1757236391622,12.90772757,203.87,203.8,6.7986358]
[1757236391920,12.90772757,203.87,203.81,7.42]
[1757236392612,5.51772757,203.86,203.81,7.42]
[1757236393919,12.90772757,203.88,203.81,7.42]
[1757236403433,12.90772757,203.88,203.84,1.5251789]
[1757236403626,8.15,203.87,203.84,7.62584319]
[1757236403827,8.15,203.87,203.85,7.38]
[1757236405036,5.51772757,203.88,203.86,1.5251789]
[1757236405236,8.15,203.88,203.86,8.9051789]
[1757236405637,8.15,203.88,203.87,4.62060429]
[1757236407539,8.15,203.88,203.86,8.9051789]
[1757236409646,5.51772757,203.9,203.79,8.53920785]
[1757236409839,5.51772757,203.88,203.85,1.5251789]
[1757236410045,8.15,203.88,203.87,1.5251789]
[1757236410445,13.66772757,203.9,203.87,8.9051789]
[1757236410640,5.51772757,203.9,203.87,8.9051789]
[1757236410850,8.15,203.89,203.87,8.9051789]
[1757236412148,8.15,203.89,203.87,1.5251789]
[1757236412344,5.51772757,203.9,203.87,1.5251789]
[1757236412542,8.15,203.89,203.87,1.5251789]
[1757236413548,8.15,203.89,203.87,0.21199478]
[1757236415252,94.22647536,203.91,203.87,0.21199478]
[1757236415551,8.15,203.9,203.87,0.21199478]
[1757236415752,94.22647536,203.91,203.87,0.21199478]
[1757236415947,8.15,203.9,203.87,0.21199478]
[1757236416250,94.22647536,203.91,203.87,0.21199478]
[1757236417350,8.15,203.9,203.87,0.21199478]
[1757236417550,8.15,203.9,203.85,1.5251789]
[1757236417750,5.51772757,203.9,203.85,8.9051789]
[1757236417952,8.15,203.89,203.86,7.38]
[1757236418140,5.51772757,203.9,203.86,7.38]
[1757236418649,8.15,203.89,203.86,7.38]
[1757236418850,5.51772757,203.9,203.85,8.9051789]
[1757236419248,8.15,203.89,203.85,8.9051789]
[1757236419752,8.15,203.89,203.86,7.38]
[1757236419946,5.51772757,203.9,203.86,7.38]
[1757236420343,8.15,203.89,203.86,7.38]
[1757236420647,5.51772757,203.9,203.86,7.38]
[1757236421353,8.15,203.89,203.86,7.38]
[1757236421547,5.51772757,203.9,203.86,7.38]
[1757236422049,8.15,203.89,203.86,7.38]
[1757236422551,5.51772757,203.9,203.86,7.38]
[1757236422946,8.15,203.89,203.86,7.38]
[1757236423149,5.51772757,203.9,203.86,7.38]
[1757236423952,8.15,203.89,203.86,7.38]
[1757236424448,5.51772757,203.9,203.86,7.38]
[1757236425650,8.15,203.89,203.86,7.38]
[1757236429159,5.51772757,203.9,203.86,7.38]
[1757236429360,7.85,203.89,203.86,7.38]
[1757236430255,5.51772757,203.9,203.86,4.31298137]
[1757236431753,7.85,203.89,203.86,4.31298137]
[1757236432160,5.51772757,203.9,203.86,4.31298137]
[1757236432661,7.85,203.89,203.86,4.31298137]
[1757236433460,5.51772757,203.9,203.86,4.31298137]
[1757236433861,7.85,203.88,203.86,4.31298137]
[1757236445466,7.85,203.88,203.86,1.24587865]
[1757236447171,5.51772757,203.9,203.85,1.5251789]
[1757236447572,5.51772757,203.9,203.85,4.5451789]
[1757236448172,13.36772757,203.89,203.85,4.5451789]
[1757236448372,7.85,203.88,203.85,4.5451789]
[1757236450071,5.51772757,203.89,203.85,4.5451789]
[1757236450577,7.85,203.88,203.85,4.5451789]
[1757236450770,5.51772757,203.89,203.85,4.5451789]
[1757236450974,7.85,203.88,203.85,4.5451789]
[1757236451274,5.51772757,203.89,203.85,4.5451789]
[1757236451472,7.85,203.88,203.85,4.5451789]
[1757236451676,7.85,203.88,203.85,1.5251789]
[1757236452174,5.51772757,203.89,203.85,1.5251789]
[1757236453173,7.85,203.88,203.85,1.5251789]
[1757236453378,5.51772757,203.89,203.85,1.5251789]
[1757236453774,7.85,203.88,203.85,1.5251789]
[1757236454181,5.51772757,203.89,203.85,1.5251789]
[1757236454383,7.85,203.88,203.85,1.5251789]
[1757236454582,5.51772757,203.89,203.85,1.5251789]
[1757236455277,7.85,203.88,203.85,1.5251789]
[1757236455484,5.51772757,203.89,203.85,1.5251789]
[1757236455787,7.85,203.88,203.85,1.5251789]
[1757236455981,5.51772757,203.89,203.85,1.5251789]
[1757236456388,7.85,203.88,203.85,1.5251789]
[1757236456582,5.51772757,203.89,203.85,1.5251789]
[1757236457480,7.85,203.88,203.85,1.5251789]
[1757236457886,5.51772757,203.89,203.85,1.5251789]
[1757236458187,7.85,203.88,203.85,1.5251789]
[1757236458387,5.51772757,203.89,203.85,1.5251789]
[1757236458790,7.85,203.88,203.85,1.5251789]
[1757236458987,13.36772757,203.88,203.79,7.4354]
[1757236459192,7.99,203.86,203.81,1.5251789]
[1757236459586,5.51772757,203.87,203.81,1.5251789]
[1757236459791,7.99,203.86,203.81,1.5251789]
[1757236460484,5.51772757,203.87,203.81,1.5251789]
[1757236461190,7.99,203.86,203.81,1.5251789]
[1757236461386,7.99,203.86,203.81,4.5551789]
[1757236461890,5.51772757,203.87,203.81,4.5551789]
[1757236462090,7.99,203.86,203.81,4.5551789]
[1757236462791,5.51772757,203.87,203.81,1.5251789]
[1757236463185,7.99,203.86,203.81,1.5251789]
[1757236463389,5.51772757,203.87,203.81,1.5251789]
[1757236463587,7.99,203.86,203.8,3.03]
[1757236478703,7.99,203.87,203.8,122.03]
[1757236478897,5.51772757,203.88,203.8,122.03]
[1757236479097,7.99,203.87,203.8,122.03]
[1757236479600,5.51772757,203.88,203.8,122.03]
[1757236479800,7.99,203.87,203.8,122.03]
[1757236480104,5.51772757,203.88,203.8,122.03]
[1757236480505,7.99,203.87,203.8,122.03]
[1757236480703,5.51772757,203.88,203.8,122.03]
[1757236481404,7.99,203.87,203.8,122.03]
[1757236481603,5.51772757,203.88,203.8,122.03]
[1757236481800,7.99,203.87,203.8,122.03]
[1757236482195,5.51772757,203.88,203.8,122.03]
[1757236482904,7.99,203.87,203.8,122.03]
[1757236483104,5.51772757,203.88,203.8,122.03]
[1757236484004,7.99,203.87,203.8,126.4452]
[1757236486607,5.51772757,203.88,203.8,126.4452]
[1757236486809,7.99,203.87,203.8,126.4452]
[1757236492605,7.99,203.87,203.81,3.03]
[1757236495017,7.99,203.87,203.81,7.445]
[1757236496219,13.50772757,203.87,203.81,7.445]
[1757236500221,13.50772757,203.87,203.81,3.03]
[1757236503021,13.50772757,203.87,203.81,7.445]
[1757236503216,5.51772757,203.86,203.81,4.415]
[1757236503422,7.55,203.85,203.82,3.03]
[1757236503623,7.55,203.85,203.82,0.47464094]
[1757236504322,5.51772757,203.86,203.82,0.47464094]
[1757236504622,7.55,203.85,203.82,0.47464094]
[1757236505723,5.51772757,203.86,203.82,0.47464094]
[1757236506023,7.55,203.85,203.82,0.47464094]
[1757236506318,7.55,203.86,203.82,0.47464094]
[1757236506518,5.51772757,203.87,203.82,0.47464094]
[1757236506723,7.55,203.86,203.82,0.47464094]
[1757236507418,5.51772757,203.87,203.82,0.47464094]
[1757236507624,7.55,203.86,203.82,0.47464094]
[1757236507923,5.51772757,203.87,203.82,0.47464094]
[1757236508122,7.55,203.86,203.82,0.47464094]
[1757236508625,5.51772757,203.87,203.82,0.47464094]
[1757236509125,7.55,203.86,203.82,0.47464094]
[1757236509326,5.51772757,203.87,203.82,0.47464094]
[1757236510321,7.55,203.86,203.82,0.47464094]
[1757236510625,5.51772757,203.87,203.82,0.47464094]
[1757236510825,7.55,203.86,203.82,0.47464094]
[1757236511124,5.51772757,203.87,203.82,0.47464094]
[1757236511320,7.55,203.86,203.82,0.47464094]
[1757236511714,5.51772757,203.87,203.82,0.47464094]
[1757236512718,7.55,203.86,203.82,0.47464094]
[1757236513222,5.51772757,203.86,203.81,123.825]
[1757236513421,7.55,203.85,203.81,123.825]
[1757236513925,7.55,203.86,203.81,123.825]
[1757236514122,5.51772757,203.87,203.81,123.825]
[1757236514318,13.06772757,203.86,203.81,123.825]
[1757236514521,5.51772757,203.87,203.81,123.825]
[1757236514726,7.55,203.86,203.81,123.825]
[1757236515329,5.51772757,203.86,203.81,123.355]
[1757236515529,7.55,203.85,203.82,0.47]
[1757236516131,5.51772757,203.87,203.82,0.47]
[1757236516428,7.55,203.86,203.82,0.47]
[1757236516621,5.51772757,203.87,203.82,0.47]
[1757236516825,7.55,203.86,203.82,0.47]
[1757236517225,5.51772757,203.87,203.82,0.47]
[1757236517426,7.55,203.86,203.82,0.47]
[1757236518322,5.51772757,203.87,203.82,0.47]
[1757236519531,8.01,203.86,203.82,0.47]
[1757236520129,8.01,203.86,203.82,4.8848]
[1757236520934,5.51772757,203.87,203.82,4.8848]
[1757236521229,8.01,203.86,203.82,4.8848]
[1757236521633,5.51772757,203.87,203.82,4.8848]
[1757236521833,8.01,203.86,203.82,4.8848]
[1757236522834,5.51772757,203.87,203.82,4.8848]
[1757236523036,8.01,203.86,203.82,4.8848]
[1757236523631,8.01,203.87,203.82,2.85362451]
[1757236523838,8.01,203.87,203.82,2.38362451]
[1757236524030,8.01,203.87,203.83,0.47]
[1757236524430,8.01,203.87,203.82,2.38362451]
[1757236524634,8.01,203.87,203.84,0.47]
[1757236524836,8.01,203.87,203.85,4.54445235]
[1757236525136,8.01,203.87,203.86,1.47721923]
[1757236540255,8.01,203.87,203.86,0.25516051]
[1757236547163,8.01,203.87,203.84,6.41928493]
[1757236547164,8.01,203.88,203.84,6.41928493]
[1757236547661,5.51772757,203.89,203.84,6.41928493]
[1757236548161,8.01,203.88,203.84,6.41928493]
[1757236549259,8.03,203.88,203.84,6.41928493]
[1757236549660,5.51772757,203.89,203.84,2.00498493]
[1757236550555,8.03,203.88,203.84,2.00498493]
[1757236551160,5.51772757,203.89,203.85,0.47]
[1757236551361,8.03,203.91,203.88,1.52498493]
[1757236551561,8.03,203.91,203.89,0.47]
[1757236552363,8.03,203.91,203.9,4.79081191]
[1757236555561,8.03,203.93,203.9,6.78579684]
[1757236555768,8.03,203.93,203.91,4.79081191]
[1757236555967,8.03,203.93,203.9,1.52498493]
[1757236556157,8.03,203.93,203.91,4.5472057]
[1757236556365,8.03,203.93,203.9,1.52498493]
[1757236556663,5.51772757,203.94,203.91,4.54650665]
[1757236556967,8.03,203.93,203.9,1.52498493]
[1757236557268,5.51772757,203.94,203.9,1.52498493]
[1757236557467,8.03,203.93,203.9,1.99498493]
[1757236557859,5.51772757,203.94,203.9,1.99498493]
[1757236558167,8.03,203.93,203.9,1.99498493]
[1757236558367,5.51772757,203.94,203.9,1.52498493]
[1757236558563,8.03,203.93,203.9,1.52498493]
[1757236558769,5.51772757,203.94,203.9,1.52498493]
[1757236559062,83.6132052,203.96,203.81,187.5794]
[1757236559063,8.03,203.95,203.92,1.99498493]
[1757236559267,5.51772757,203.98,203.94,1.52498493]
[1757236559268,8.03,203.97,203.94,1.52498493]
[1757236560467,5.51772757,203.98,203.94,1.52498493]
[1757236560768,5.51772757,203.98,203.88,70.1435]
[1757236561067,8.03,203.97,203.9,1.52498493]
[1757236561268,8.03,203.97,203.91,4.54845639]
[1757236561469,8.03,203.97,203.92,4.54845639]
[1757236561670,8.03,203.97,203.93,4.54845639]
[1757236561967,8.03,203.97,203.9,1.52498493]
[1757236562270,9.55498493,203.97,203.91,4.547033]
[1757236562566,8.03,203.95,203.88,1.99498493]
[1757236562870,8.03,203.95,203.89,4.54730887]
[1757236563064,8.03,203.95,203.88,1.99498493]
[1757236563065,8.03,203.95,203.9,4.54730887]
[1757236563271,8.03,203.95,203.88,1.99498493]
[1757236563470,8.03,203.95,203.89,4.54735911]
[1757236563666,13.54772757,203.96,203.9,6.54234404]
[1757236563966,5.51772757,203.96,203.91,4.54714429]
[1757236564274,8.03,203.95,203.91,0.47]
[1757236564466,5.51772757,203.96,203.91,0.47]
[1757236564672,8.03,203.95,203.92,1.52498493]
[1757236564970,8.03,203.96,203.94,1.99498493]
[1757236567070,5.51772757,203.97,203.94,1.99498493]
[1757236567269,8.03,203.96,203.94,1.99498493]
[1757236567471,5.51772757,203.97,203.94,1.99498493]
[1757236567667,5.51772757,203.98,203.96,1.99498493]
[1757236567869,8.03,204.0,203.97,0.47]
[1757236568070,8.03,204.01,203.99,1.99498493]
[1757236568474,13.54772757,204.02,203.95,1.99498493]
[1757236568977,13.54772757,204.02,203.96,4.59700832]
[1757236569276,5.51772757,204.03,203.99,1.99498493]
[1757236569475,8.03,204.02,203.95,0.47]
[1757236569679,13.54772757,204.02,203.96,1.52498493]
[1757236572179,8.03,204.02,203.96,1.52498493]
[1757236572570,8.03,204.02,203.9,49.16]
[1757236572571,8.03,204.04,204.01,0.47]
[1757236572770,8.03,204.04,204.02,1.99498493]
[1757236573178,8.03,204.04,204.02,0.47]
[1757236573378,8.03,204.05,204.02,1.52498493]
[1757236573584,5.51772757,204.06,204.02,1.52498493]
[1757236573874,8.03,204.05,204.02,1.52498493]
[1757236574070,8.03,204.05,204.02,1.99498493]
[1757236574273,13.54772757,204.09,204.04,1.52498493]
[1757236574480,8.03,204.08,204.05,0.47]
[1757236575379,8.03,204.09,204.02,1.52498493]
[1757236575682,5.51772757,204.08,204.02,1.52498493]
[1757236575881,8.03,204.07,204.0,1.52498493]
[1757236581985,7.76,204.05,203.98,116.94634993]
[1757236582480,1.52498493,204.06,203.98,116.94634993]
[1757236582684,7.76,204.05,203.98,116.94634993]
[1757236582886,1.52498493,204.06,203.98,116.94634993]
[1757236583087,7.76,204.05,203.98,116.94634993]
[1757236583388,1.52498493,204.06,203.98,116.94634993]
[1757236583688,7.76,204.05,203.98,116.94634993]
[1757236583886,1.52498493,204.06,203.98,116.94634993]
[1757236584087,7.76,204.05,203.98,116.94634993]
[1757236584288,1.52498493,204.06,203.98,116.94634993]
[1757236584489,7.76,204.05,203.98,116.94634993]
[1757236584688,1.52498493,204.06,203.98,116.94634993]
[1757236584993,1.52498493,204.04,203.98,116.94634993]
[1757236585191,7.76,204.03,203.98,116.94634993]
[1757236585384,7.76,204.03,203.98,115.421365]
[1757236585585,7.76,204.05,203.98,115.421365]
[1757236586988,7.89801538,204.06,203.98,115.421365]
[1757236587190,7.76,204.04,203.98,115.421365]
[1757236588391,5.51772757,204.05,203.99,0.46]
[1757236588593,13.27772757,204.06,203.99,0.46]
[1757236589188,7.76,204.06,203.99,2.84028781]
[1757236589392,7.76,204.06,204.0,0.46]
[1757236589595,7.76,204.09,204.0,0.46]
[1757236589893,7.76,204.09,204.01,0.46]
[1757236590095,7.76,204.09,204.01,2.38028781]
[1757236590296,7.76,204.09,204.02,0.46]
[1757236590490,7.89801538,204.1,203.99,0.46]
[1757236590695,8.27880199,204.13,203.99,0.46]
[1757236590696,5.51772757,204.08,203.99,0.46]
[1757236590900,7.76,204.09,203.99,0.46]
[1757236591902,7.76,204.09,204.0,4.4108]
[1757236592098,7.76,204.09,204.01,0.47]
[1757236592299,13.27772757,204.09,204.01,0.47]
[1757236593108,7.76,204.09,204.01,0.47]
[1757236593305,13.27772757,204.09,204.01,0.47]
[1757236593800,13.27772757,204.09,203.98,117.80165281]
[1757236594007,5.51772757,204.08,203.98,118.27165281]
[1757236594396,7.76,204.07,203.98,118.27165281]
[1757236594601,5.51772757,204.08,203.98,118.27165281]
[1757236595301,7.76,204.07,203.98,118.27165281]
[1757236595902,13.27772757,204.07,203.98,118.27165281]
[1757236596204,7.76,204.06,203.98,118.27165281]
[1757236598910,13.27772757,204.06,203.98,115.891365]
[1757236599912,7.76,204.06,203.98,115.891365]
[1757236601115,13.27772757,204.06,203.98,115.891365]
[1757236602015,13.27772757,204.06,203.99,0.47]
[1757236603710,5.51772757,204.05,203.99,0.47]
[1757236603920,7.76,204.04,203.99,0.47]
[1757236604119,7.76,204.05,203.99,0.47]
[1757236604717,7.76,204.05,203.98,115.421365]
[1757236604914,5.51772757,204.03,203.98,115.421365]
[1757236605111,7.76,204.02,203.96,0.47]
[1757236606022,7.76,204.02,203.92,0.47]
[1757236606212,13.27772757,204.02,203.93,4.59926708]
[1757236606516,13.27772757,204.02,203.94,4.59926708]
[1757236606708,13.27772757,204.02,203.95,4.59926708]
[1757236606910,13.27772757,204.02,203.96,4.59926708]
[1757236607116,13.27772757,204.02,203.92,0.47]
[1757236607316,7.76,204.0,203.93,4.60099662]
[1757236607516,7.76,204.0,203.94,4.60099662]
[1757236607819,7.76,204.0,203.92,0.47]
[1757236608020,7.76,204.0,203.93,4.60144572]
[1757236608315,13.27772757,204.0,203.94,5.07144572]
[1757236608517,7.76,203.99,203.95,5.07144572]
[1757236608713,7.76,203.99,203.95,0.47]
[1757236608916,5.51772757,204.0,203.95,0.47]
[1757236609217,7.81,203.99,203.95,0.47]
[1757236609418,5.51772757,204.0,203.95,0.47]
[1757236609614,7.81,203.99,203.95,0.47]
[1757236609814,5.51772757,204.0,203.95,0.47]
[1757236610918,7.81,203.99,203.95,0.47]
[1757236611626,7.81,203.99,203.92,0.46]
[1757236611822,7.81,203.99,203.93,4.60179289]
[1757236612123,7.81,203.99,203.95,0.46]
[1757236612318,7.81,203.99,203.94,4.60179289]
[1757236612319,7.81,203.99,203.96,0.46]
[1757236613022,5.51772757,204.01,203.93,0.46]
[1757236613317,5.51772757,204.01,203.95,0.46]
[1757236613520,13.32772757,204.01,203.97,0.46]
[1757236613720,13.32772757,204.01,203.93,0.46]
[1757236613912,13.32772757,204.01,203.95,0.46]
[1757236614119,5.51772757,204.0,203.97,0.46]
[1757236614315,5.51772757,204.0,203.93,0.46]
[1757236614517,5.51772757,204.0,203.95,0.46]
[1757236614720,5.51772757,204.0,203.97,0.46]
[1757236615021,13.32772757,204.0,203.97,0.46]
[1757236615223,5.51772757,204.0,203.97,0.46]
[1757236615418,7.81,203.99,203.97,0.46]
[1757236615621,13.32772757,204.0,203.93,0.46]
[1757236615820,13.32772757,204.0,203.94,4.60038852]
[1757236616015,7.81,203.99,203.96,0.46]
[1757236616222,13.32772757,203.99,203.92,0.46]
[1757236616418,13.32772757,203.99,203.93,4.60046335]
[1757236616722,5.51772757,204.0,203.94,6.98075116]
[1757236617026,13.32772757,204.0,203.96,0.46]
[1757236617222,13.32772757,204.0,203.95,0.46]
[1757236617422,13.32772757,204.0,203.97,0.46]
[1757236618424,7.81,204.0,203.97,0.46]
[1757236619426,7.81,204.0,203.94,0.46]
[1757236619623,13.32772757,204.01,203.95,4.62047368]
[1757236619823,7.81,204.0,203.96,5.08047368]
[1757236620022,7.81,204.0,203.97,4.62047368]
[1757236620224,7.81,204.0,203.94,0.46]
[1757236620417,7.81,204.0,203.95,4.62097811]
[1757236620724,7.81,204.0,203.97,0.46]
[1757236622228,7.81,203.99,203.97,0.46]
[1757236623130,7.81,203.99,203.93,2.38028781]
[1757236623326,7.81,203.99,203.94,4.62105138]
[1757236623526,7.81,203.99,203.96,0.46]
[1757236624327,5.51772757,204.02,203.98,0.46]
[1757236624627,7.81,204.02,203.95,2.84028781]
[1757236624826,7.81,204.02,203.96,4.62027713]
[1757236625029,7.81,204.02,203.95,2.84028781]
[1757236625030,5.51772757,204.03,203.97,4.62027713]
[1757236625226,5.51772757,204.03,203.98,4.62027713]
[1757236625427,13.32772757,204.02,203.95,2.84028781]
[1757236625726,13.32772757,204.02,203.96,4.62140404]
[1757236625928,13.32772757,204.02,203.97,4.62140404]
[1757236626128,13.32772757,204.02,203.95,2.84028781]
[1757236626329,13.32772757,204.02,203.96,4.62157118]
[1757236626632,13.32772757,204.02,203.97,4.62157118]
[1757236626831,13.32772757,204.02,203.95,2.84028781]
[1757236627032,13.32772757,204.02,203.96,4.62152274]
[1757236627232,5.51772757,204.02,203.97,4.62152274]
[1757236627533,7.81,204.01,203.95,2.38028781]
[1757236627827,5.51772757,204.01,203.96,4.62170912]
[1757236628026,5.51772757,204.01,203.95,2.38028781]
[1757236628228,7.81,204.0,203.96,4.62169632]
[1757236628435,5.51772757,204.01,203.95,2.38028781]
[1757236628728,5.51772757,204.01,203.96,4.62166335]
[1757236628934,5.51772757,204.01,203.95,2.38028781]
[1757236629134,5.51772757,204.01,203.96,4.62166898]
[1757236629434,5.51772757,204.01,203.95,2.38028781]
[1757236629628,7.81,204.0,203.96,4.62164348]
[1757236629827,5.51772757,204.01,203.95,2.38028781]
[1757236630028,7.81,204.0,203.96,4.62205096]
[1757236630231,5.51772757,204.01,203.95,2.38028781]
[1757236630532,5.51772757,204.01,203.96,4.6224655]
[1757236630730,5.51772757,204.01,203.95,2.38028781]
[1757236630933,5.51772757,204.01,203.96,4.62320434]
[1757236631136,7.81,204.0,203.95,2.38028781]
[1757236631336,5.51772757,204.01,203.96,4.62309846]
[1757236631534,7.81,204.0,203.95,2.38028781]
[1757236631731,7.81,204.0,203.96,4.62319485]
[1757236631926,5.51772757,204.01,203.95,2.38028781]
[1757236632132,5.51772757,204.02,203.96,5.08319485]
[1757236632432,5.51772757,204.02,203.97,4.62319485]
[1757236632631,5.51772757,204.02,203.96,0.46]
[1757236632935,7.81,204.03,203.99,0.46]
[1757236633137,5.51772757,204.04,203.99,0.46]
[1757236633433,7.81,204.03,203.97,0.46]
[1757236633627,7.81,204.03,203.98,4.61860394]
[1757236633830,7.81,204.03,203.99,4.61860394]
[1757236634027,7.81,204.03,203.97,0.46]
[1757236634228,5.51772757,204.04,203.98,4.61860394]
[1757236634433,5.51772757,204.04,203.99,4.61860394]
[1757236634749,7.81,204.03,203.97,0.46]
[1757236635040,7.81,204.03,203.96,2.38028781]
[1757236635041,13.32772757,204.04,203.98,5.07851459]
[1757236635236,7.81,204.03,204.0,0.46]
[1757236635539,7.81,204.03,203.97,0.46]
[1757236635736,7.81,204.03,203.98,4.61903333]
[1757236635933,7.81,204.03,203.99,4.61903333]
[1757236636128,5.51772757,204.04,204.0,4.61903333]
[1757236636437,7.81,204.03,203.97,0.46]
[1757236636634,7.81,204.03,203.98,4.61944713]
[1757236636838,5.51772757,204.04,203.99,4.61944713]
[1757236637138,7.81,204.03,204.0,4.61944713]
[1757236637338,7.81,204.03,203.97,0.46]
[1757236637539,5.51772757,204.04,203.98,4.62062048]
[1757236637736,5.51772757,204.04,203.99,4.62062048]
[1757236637940,7.81,204.03,204.0,5.08062048]
[1757236638134,7.81,204.03,204.01,5.08062048]
[1757236638440,7.81,204.03,204.01,0.46]
[1757236640442,7.72,204.04,203.99,2.38028781]
[1757236640634,5.51772757,204.05,204.0,4.62094447]
[1757236640832,7.72,204.04,204.01,4.62094447]
[1757236641030,13.23772757,204.04,203.98,0.48]
[1757236641235,7.72,204.03,203.99,4.62128998]
[1757236641434,5.51772757,204.04,204.0,4.62128998]
[1757236641636,5.51772757,204.04,204.01,4.62128998]
[1757236641836,7.72,204.03,203.98,0.48]
[1757236642035,5.51772757,204.04,203.99,4.62152223]
[1757236642235,5.51772757,204.04,204.0,4.62152223]
[1757236642441,5.51772757,204.04,204.01,4.62152223]
[1757236642741,5.51772757,204.04,203.98,0.48]
[1757236642943,7.72,204.05,203.99,4.62169635]
[1757236642944,13.23772757,204.05,203.99,4.62169635]
[1757236643137,5.51772757,204.05,204.0,4.62169635]
[1757236643336,7.72,204.04,204.01,4.62169635]
[1757236643539,7.72,204.04,203.98,0.48]
[1757236643744,7.72,204.04,203.99,4.6178717]
[1757236643944,7.72,204.03,204.0,4.6178717]
[1757236644239,5.51772757,204.04,204.01,4.6178717]
[1757236644444,5.51772757,204.04,203.97,112.00751966]
[1757236644644,13.23772757,204.04,203.98,5.09779236]
[1757236644841,5.51772757,204.04,203.99,5.09779236]
[1757236645046,7.72,204.03,204.0,4.61779236]
[1757236645242,7.72,204.03,204.01,4.61779236]
[1757236645440,7.72,204.03,203.99,0.48]
[1757236645441,7.72,204.03,204.0,1.52289004]
[1757236645646,7.72,204.03,204.01,4.61861377]
[1757236645942,7.72,204.03,204.0,1.52289004]
[1757236646139,5.51772757,204.04,204.01,4.61907033]
[1757236646344,7.04061761,204.03,203.93,118.7]
[1757236646543,13.23772757,204.02,203.95,1.52289004]
[1757236646742,13.23772757,204.02,203.96,4.6200281]
[1757236646939,7.72,204.01,203.97,5.1000281]
[1757236647142,7.72,204.01,203.98,4.6200281]